fUST/lending_fUST_20251113
["ID","MTS","AMOUNT","RATE_DAILY","PERIOD"]
[393838574,1763029832454,-266.85044035,0.00024118,2]
[393838576,1763029832464,-68396.58387566,0.00024142,2]
[393838579,1763029832474,-500.0,0.00024173,2]
[393838580,1763029832486,-500.0,0.00024173,2]
[393838583,1763029832496,-217.15233878,0.00024187,2]
[393838585,1763029832505,-1916.33340744,0.00024317,2]
[393838587,1763029832515,-229.84,0.00024407,10]
[393838589,1763029832524,-500.0,0.00024417,2]
[393838591,1763029832534,-508.47219718,0.00024417,2]
[393838593,1763029832545,-1643.37163566,0.00024497,2]
[393838595,1763029832554,-2196.79791681,0.0002452,2]
[393838597,1763029832564,-500.0,0.00024646,2]
[393838599,1763029832574,-500.0,0.00024646,2]
[393838601,1763029832583,-500.0,0.00024646,2]
[393838603,1763029832593,-500.0,0.00024646,2]
[393838605,1763029832602,-500.0,0.00024646,2]
[393838607,1763029832611,-500.0,0.00024646,2]
[393838609,1763029832620,-500.0,0.00024646,2]
[393838611,1763029832630,-500.0,0.00024646,2]
[393838613,1763029832639,-260.63312103,0.00024646,2]
[393838615,1763029832648,-500.0,0.00024646,2]
[393838617,1763029832658,-238.23661777,0.00024646,2]
[393838619,1763029832667,-500.0,0.00024646,2]
[393838621,1763029832676,-500.0,0.00024646,2]
[393838623,1763029832685,-500.0,0.00024646,2]
[393838625,1763029832695,-558.85365106,0.00024646,2]
[393838627,1763029832704,-500.0,0.00024646,2]
[393838629,1763029832713,-500.0,0.00024646,2]
[393838631,1763029832722,-500.0,0.00024646,2]
[393838633,1763029832733,-500.0,0.00024646,2]
[393838635,1763029832743,-500.0,0.00024646,2]
[393838636,1763029832751,-635.68371235,0.00024646,2]
[393838638,1763029832762,-649.51842726,0.00024646,2]
[393838640,1763029832771,-500.0,0.00024646,2]
[393838642,1763029832780,-540.56485213,0.00024646,2]
[393838644,1763029832789,-337.84053912,0.00024646,2]
[393838646,1763029832798,-2111.23,0.00024648,3]
[393838648,1763029832807,-1055.61,0.00024648,3]
[393838650,1763029832816,-527.81,0.00024648,3]
[393838652,1763029832825,-263.9,0.00024648,3]
[393838654,1763029832834,-791.74,0.00024648,3]
[393838656,1763029832845,-419.35303774,0.00024657,2]
[393838658,1763029832855,-500.0,0.00024657,2]
[393838660,1763029832864,-500.0,0.00024657,2]
[393838662,1763029832874,-151.0,0.00024657,7]
[393838664,1763029832883,-151.0,0.00024657,7]
[393838666,1763029832895,-151.0,0.00024658,7]
[393838668,1763029832904,-156.696299,0.00024658,7]
[393838670,1763029832913,-152.471477,0.00024658,7]
[393838672,1763029832923,-152.361453,0.00024658,7]
[393838674,1763029832932,-151.0,0.00024658,7]
[393838675,1763029832941,-151.0,0.00024658,7]
[393838678,1763029832951,-151.0,0.00024658,7]
[393838680,1763029832960,-151.0,0.00024658,7]
[393838682,1763029832970,-151.0,0.00024658,7]
[393838684,1763029832979,-261.365858,0.00024658,7]
[393838686,1763029832991,-152.975507,0.00024658,7]
[393838688,1763029833000,-153.531701,0.00024658,7]
[393838690,1763029833010,-298.920515,0.00024658,7]
[393838692,1763029833019,-299.298062,0.00024658,7]
[393838694,1763029833029,-151.0,0.00024658,7]
[393838696,1763029833039,-151.0,0.00024658,7]
[393838698,1763029833048,-151.0,0.00024658,7]
[393838700,1763029833057,-151.0,0.00024658,7]
[393838702,1763029833066,-151.0,0.00024658,7]
[393838704,1763029833076,-151.0,0.00024658,7]
[393838706,1763029833086,-151.0,0.00024658,7]
[393838708,1763029833095,-176.122525,0.00024658,7]
[393838710,1763029833105,-162.22129,0.00024658,7]
[393838712,1763029833114,-288.680322,0.00024658,7]
[393838714,1763029833123,-151.0,0.00024658,7]
[393838716,1763029833133,-151.0,0.00024658,7]
[393838718,1763029833142,-151.0,0.00024658,7]
[393838720,1763029833151,-151.0,0.00024658,7]
[393838722,1763029833160,-151.0,0.00024658,7]
[393838724,1763029833170,-151.0,0.00024658,7]
[393838726,1763029833179,-151.0,0.00024658,7]
[393838728,1763029833188,-197.827452,0.00024658,7]
[393838730,1763029833197,-4807.635968,0.00024658,7]
[393838732,1763029833206,-4807.635968,0.00024658,7]
[393838733,1763029833216,-4807.635968,0.00024658,7]
[393838736,1763029833226,-4807.635968,0.00024658,7]
[393838738,1763029833236,-3593.67460192,0.00024658,7]
[393838784,1763029837816,-150.0,0.00019925,2]
[393838785,1763029837826,-177.0,0.00021925,2]
[393838786,1763029837837,-204.0,0.00023925,2]
[393838787,1763029837850,-221.19975043,0.00024645,2]
[393838788,1763029837860,-500.0,0.00024645,2]
[393838789,1763029837870,-500.0,0.00024645,2]
[393838790,1763029837880,-500.0,0.00024645,2]
[393838791,1763029837891,-230.10297967,0.00024645,2]
[393838792,1763029837900,-500.0,0.00024645,2]
[393838793,1763029837910,-1213.96136608,0.00024658,7]
[393838794,1763029837919,-4807.635968,0.00024658,7]
[393838795,1763029837932,-4807.635968,0.00024658,7]
[393838796,1763029837941,-4807.635968,0.00024658,7]
[393838797,1763029837951,-4807.635968,0.00024658,7]
[393838798,1763029837960,-4807.635968,0.00024658,7]
[393838799,1763029837970,-1444.37011953,0.00024658,7]
[393838800,1763029837987,-374.98291664,0.00024658,7]
[393838801,1763029837998,-506.0,0.00024658,7]
[393838803,1763029840072,-3e-08,0.00024658,7]
[393838804,1763029840162,-198.85844226,0.00024658,7]
[393838805,1763029840174,-635.0,0.00024658,7]
[393838812,1763029843055,-1648.42448954,0.00024658,7]
[393838813,1763029843065,-1136.33243015,0.00024658,7]
[393838814,1763029843077,-464.996769,0.00024658,7]
[393838815,1763029843090,-302.0,0.00024658,7]
[393838816,1763029843267,-2904.30676885,0.00024658,7]
[393838817,1763029843276,-4807.635968,0.00024658,7]
[393838818,1763029843285,-4807.635968,0.00024658,7]
[393838819,1763029843295,-4807.635968,0.00024658,7]
[393838820,1763029843305,-4807.635968,0.00024658,7]
[393838821,1763029843314,-232.003458,0.00024658,7]
[393838822,1763029843324,-232.003458,0.00024658,7]
[393838824,1763029843333,-232.003458,0.00024658,7]
[393838826,1763029843343,-232.003458,0.00024658,7]
[393838828,1763029843352,-232.003458,0.00024658,7]
[393838833,1763029843589,-232.003458,0.00024658,7]
[393838835,1763029843598,-232.003458,0.00024658,7]
[393838837,1763029843607,-232.003458,0.00024658,7]
[393838838,1763029843616,-232.003458,0.00024658,7]
[393838839,1763029843626,-232.003458,0.00024658,7]
[393838840,1763029843635,-232.003458,0.00024658,7]
[393838841,1763029843644,-232.003458,0.00024658,7]
[393838842,1763029843654,-232.003458,0.00024658,7]
[393838843,1763029843663,-232.003458,0.00024658,7]
[393838844,1763029843673,-232.003458,0.00024658,7]
[393838845,1763029843683,-232.003458,0.00024658,7]
[393838846,1763029843693,-506.51910701,0.00024673,2]
[393838847,1763029843702,-500.0,0.00024673,2]
[393838848,1763029843712,-502.08351042,0.00024673,2]
[393838849,1763029843721,-415.18542352,0.00024673,2]
[393838850,1763029843731,-509.88878154,0.00024673,2]
[393838851,1763029843743,-504.16917821,0.00024673,2]
[393838852,1763029843753,-500.0,0.00024673,2]
[393838853,1763029843762,-505.77340568,0.00024673,2]
[393838854,1763029843772,-501.38104687,0.00024673,2]
[393838855,1763029843782,-500.61599441,0.00024673,2]
[393838856,1763029843791,-501.08354221,0.00024673,2]
[393838857,1763029843801,-500.8192034,0.00024673,2]
[393838858,1763029843811,-500.0,0.00024673,2]
[393838859,1763029843820,-501.2120578,0.00024673,2]
[393838860,1763029843830,-500.89722849,0.00024673,2]
[393838861,1763029843841,-502.10972402,0.00024673,2]
[393838862,1763029843856,-500.0,0.00024673,2]
[393838863,1763029843865,-520.66887014,0.00024673,2]
[393838864,1763029843874,-500.0,0.00024673,2]
[393838865,1763029843884,-501.5645825,0.00024673,2]
[393838866,1763029843894,-503.14151246,0.00024673,2]
[393838867,1763029843903,-503.05674476,0.00024673,2]
[393838868,1763029843913,-500.0,0.00024673,2]
[393838869,1763029843923,-500.21794384,0.00024673,2]
[393838870,1763029843934,-157.23885909,0.00024673,2]
[393838871,1763029843944,-151.0,0.00024673,7]
[393838872,1763029843953,-151.0,0.00024673,7]
[393838873,1763029843963,-151.0,0.00024673,7]
[393838874,1763029843973,-244.894274,0.00024673,7]
[393838875,1763029843983,-4807.635968,0.00024673,7]
[393838876,1763029843993,-4807.635968,0.00024673,7]
[393838877,1763029844003,-4807.635968,0.00024673,7]
[393838878,1763029844013,-4807.63596036,0.00024673,7]
[393838879,1763029844022,-232.003458,0.00024673,7]
[393838880,1763029844033,-232.003458,0.00024673,7]
[393838881,1763029844043,-232.003458,0.00024673,7]
[393838882,1763029844052,-232.003458,0.00024673,7]
[393838883,1763029844062,-1000.0,0.00024721,2]
[393838884,1763029844072,-528.07445518,0.00024721,2]
[393838885,1763029844081,-225.18697532,0.00024735,2]
[393838886,1763029844091,-2906.29803401,0.00024777,2]
[393838887,1763029844101,-500.5207951,0.00024873,2]
[393838888,1763029844110,-239.5867406,0.00024873,2]
[393838889,1763029844119,-500.0,0.00024873,2]
[393838890,1763029844129,-500.0,0.00024873,2]
[393838891,1763029844138,-500.0,0.00024873,2]
[393838892,1763029844147,-500.0,0.00024873,2]
[393838893,1763029844156,-500.0,0.00024889,2]
[393838894,1763029844166,-500.0,0.00024899,2]
[393838895,1763029844176,-500.0,0.00024899,2]
[393838896,1763029844188,-29488.2397996,0.000249,2]
[393838897,1763029844198,-309.0,0.00024943,2]
[393838898,1763029844207,-500.0,0.00024973,2]
[393838899,1763029844216,-511.09353697,0.00024973,2]
[393838900,1763029844226,-502.17896733,0.00024973,2]
[393838901,1763029844235,-291.77716722,0.00024973,2]
[393838902,1763029844246,-500.0,0.00024973,2]
[393838903,1763029844256,-300.55067029,0.00024973,2]
[393838904,1763029844265,-500.0,0.00024973,2]
[393838905,1763029844274,-501.61451828,0.00024973,2]
[393838906,1763029844283,-81.3660172,0.00024973,2]
[393838912,1763029846224,-5000.0,0.00024723,3]
[393838913,1763029846235,-418.6339828,0.00024973,2]
[393838914,1763029846247,-14744.1198998,0.0002499,2]
[393838915,1763029846256,-23432.28249067,0.00025,5]
[393838916,1763029846265,-525.85354512,0.00025221,2]
[393838917,1763029846275,-1000.0,0.00025221,2]
[393838918,1763029846284,-813.67691406,0.00025221,2]
[393838919,1763029846294,-1001.25751545,0.00025221,2]
[393838920,1763029846304,-501.43436084,0.00025221,2]
[393838921,1763029846314,-500.99153154,0.00025221,2]
[393838922,1763029846323,-1500.0,0.00025268,2]
[393838923,1763029846332,-233.51889341,0.00025283,2]
[393838924,1763029846342,-420.0,0.00025362,2]
[393838925,1763029846351,-500.0,0.00025373,2]
[393838926,1763029846361,-423.63695189,0.00025373,2]
[393838928,1763029846371,-500.0,0.00025373,2]
[393838930,1763029846380,-500.0,0.00025384,2]
[393838931,1763029846390,-550.03511886,0.00025394,2]
[393838932,1763029846399,-768.14585046,0.00025421,2]
[393838933,1763029846414,-1000.0,0.00025421,2]
[393838934,1763029846424,-927.15293082,0.00025421,2]
[393838935,1763029846433,-1012.27234047,0.00025521,2]
[393838936,1763029846443,-1003.88181205,0.00025521,2]
[393838937,1763029846452,-1004.22605727,0.00025521,2]
[393838938,1763029846461,-501.15651101,0.00025521,2]
[393838939,1763029846471,-500.0,0.00025673,2]
[393838940,1763029846480,-508.33484859,0.00025673,2]
[393838941,1763029846489,-198.78268007,0.00025673,2]
[393838942,1763029846500,-503.90230592,0.00025673,2]
[393838943,1763029846510,-162.85,0.000257,7]
[393838944,1763029846519,-337.17325372,0.000257,2]
[393838945,1763029846528,-517.92707118,0.000257,2]
[393838946,1763029846538,-510.58559382,0.000257,2]
[393838947,1763029846547,-160.0,0.0002575,2]
[393838948,1763029846556,-1500.0,0.00025768,2]
[393838949,1763029846566,-234.24252291,0.00025778,2]
[393838950,1763029846575,-1060.43011427,0.00025816,2]
[393838951,1763029846584,-242.15909246,0.00025831,2]
[393838952,1763029846594,-5210.8611617,0.00025851,2]
[393838953,1763029846603,-504.5997775,0.00025921,2]
[393838954,1763029846613,-651.31406613,0.00025921,2]
[393838955,1763029846622,-231.0,0.00025925,2]
[393838956,1763029846631,-14744.1198998,0.00025958,2]
[393838957,1763029846641,-208.37028292,0.00025968,2]
[393838958,1763029846650,-500.0,0.00025973,2]
[393838959,1763029846659,-5354.6,0.00026,7]
[393838960,1763029846668,-4222.46,0.00026018,3]
[393838961,1763029846677,-2111.22,0.00026018,3]
[393838962,1763029846687,-1055.62,0.00026018,3]
[393838963,1763029846696,-527.8,0.00026018,3]
[393838964,1763029846709,-1000.0,0.00026084,2]
[393838965,1763029846718,-260.0,0.00026298,2]
[393838966,1763029846727,-1491.33082309,0.00026316,2]
[393838967,1763029846737,-251.11897888,0.00026379,2]
[393838968,1763029846749,-1392.62773377,0.00026495,2]
[393838969,1763029846758,-1007.03211663,0.00026521,2]
[393838970,1763029846767,-185.705,0.00026666,14]
[393838971,1763029846777,-755.16729179,0.00026666,2]
[393838972,1763029846786,-162.202445,0.00026676,2]
[393838973,1763029846796,-360.0,0.00026846,2]
[393838974,1763029846806,-260.4103811,0.00026927,2]
[393838975,1763029846815,-150.0,0.00026973,2]
[393838976,1763029846824,-14744.1198998,0.0002698,2]
[393838977,1763029846833,-56332.103872,0.0002699,2]
[393838978,1763029846845,-10000.0,0.00027,2]
[393838979,1763029846857,-1715.0017773,0.00027061,2]
[393838980,1763029846867,-14744.1198998,0.00027348,2]
[393838981,1763029846877,-152.02285994,0.00027373,2]
[393838982,1763029846887,-151.0,0.00027397,31]
[393838983,1763029846897,-151.0,0.00027397,31]
[393838984,1763029846906,-151.0,0.00027397,31]
[393838985,1763029846915,-151.0,0.00027397,31]
[393838986,1763029846926,-151.0,0.00027397,31]
[393838987,1763029846935,-151.0,0.00027397,31]
[393838988,1763029846944,-151.0,0.00027397,31]
[393838989,1763029846953,-151.0,0.00027397,31]
[393838990,1763029846963,-151.0,0.00027397,31]
[393838991,1763029846972,-151.0,0.00027397,31]
[393838992,1763029846982,-151.0,0.00027397,31]
[393838993,1763029846991,-151.0,0.00027397,31]
[393838994,1763029847002,-151.0,0.00027397,31]
[393838995,1763029847012,-207.565212,0.00027397,31]
[393838996,1763029847022,-270.0455652,0.00027475,2]
[393838997,1763029847031,-151.000001,0.00027521,5]
[393838998,1763029847041,-587.0,0.00027521,2]
[393838999,1763029847051,-382.6686212,0.00027748,2]
[393839000,1763029847060,-258.0,0.00027925,2]
[393839001,1763029847069,-280.03725112,0.00028023,2]
[393839002,1763029847079,-234.47676544,0.00028172,2]
[393839003,1763029847088,-160.0,0.00028562,2]
[393839004,1763029847097,-290.39862941,0.00028571,2]
[393839005,1763029847106,-1916.33340737,0.00028686,2]
[393839006,1763029847115,-173.434922,0.00028751,20]
[393839007,1763029847124,-5354.6,0.000288,7]
[393839008,1763029847134,-172.0,0.00028885,7]
[393839009,1763029847143,-173.0,0.00028959,2]
[393839010,1763029847153,-301.1433787,0.00029119,2]
[393839011,1763029847162,-172.0,0.00029257,2]
[393839012,1763029847171,-172.0,0.00029259,2]
[393839013,1763029847182,-800.0,0.00029351,2]
[393839014,1763029847191,-171.5421796,0.0002937,34]
[393839015,1763029847201,-173.434922,0.000294,2]
[393839016,1763029847210,-800.0,0.00029465,2]
[393839017,1763029847220,-800.0,0.00029487,2]
[393839018,1763029847229,-169.0,0.00029492,2]
[393839019,1763029847239,-151.0,0.000295,14]
[393839020,1763029847251,-169.0,0.0002955,7]
[393839021,1763029847260,-172.0,0.00029604,2]
[393839022,1763029847270,-800.0,0.00029626,2]
[393839023,1763029847280,-517.15551488,0.00029649,2]
[393839024,1763029847289,-169.0,0.00029661,2]
[393839025,1763029847298,-755.16729179,0.00029678,2]
[393839026,1763029847308,-169.0,0.00029679,7]
[393839027,1763029847318,-800.0,0.0002971,2]
[393839028,1763029847329,-169.0,0.00029784,2]
[393839029,1763029847339,-169.0,0.00029799,2]
[393839030,1763029847349,-431.0,0.00029864,2]
[393839031,1763029847358,-169.0,0.00029881,2]
[393839032,1763029847368,-151.0,0.000299,18]
[393839033,1763029847377,-285.0,0.00029925,2]
[393839034,1763029847386,-153.22732815,0.00029941,7]
[393839035,1763029847553,-169.0,0.00029969,7]
[393839036,1763029847571,-500.0,0.00029973,5]
[393839037,1763029847581,-14744.1198998,0.00029977,2]
[393839038,1763029847590,-151.0,0.00029986,7]
[393839039,1763029847599,-151.0,0.00029986,7]
[393839040,1763029847608,-151.0,0.00029986,7]
[393839041,1763029847617,-226.80165869,0.00029986,7]
[393839042,1763029847626,-151.0,0.00029987,7]
[393839043,1763029847635,-151.0,0.00029987,7]
[393839044,1763029847644,-151.0,0.00029987,7]
[393839045,1763029847653,-151.0,0.00029987,7]
[393839046,1763029847662,-151.0,0.00029987,7]
[393839047,1763029847671,-151.0,0.00029987,7]
[393839048,1763029847680,-151.0,0.00029987,7]
[393839049,1763029847689,-151.0,0.00029987,7]
[393839050,1763029847698,-151.0,0.00029987,7]
[393839051,1763029847708,-151.0,0.00029987,7]
[393839052,1763029847717,-332.0,0.00029987,7]
[393839053,1763029847726,-151.0,0.00029987,7]
[393839054,1763029847735,-151.0,0.00029987,7]
[393839055,1763029847746,-171.00429189,0.00029987,7]
[393839056,1763029847755,-166.0,0.00029987,7]
[393839057,1763029847764,-151.0,0.00029987,7]
[393839058,1763029847773,-294.55341,0.00029987,7]
[393839059,1763029847782,-151.0,0.00029987,7]
[393839060,1763029847792,-255.0786901,0.00029987,7]
[393839061,1763029847800,-151.0,0.00029987,7]
[393839062,1763029847809,-151.0,0.00029987,7]
[393839063,1763029847819,-152.24286115,0.00029987,7]
[393839064,1763029847828,-151.0,0.00029987,7]
[393839065,1763029847837,-151.0,0.00029987,7]
[393839066,1763029847847,-332.0,0.00029987,7]
[393839067,1763029847860,-151.0,0.00029987,7]
[393839068,1763029847869,-151.0,0.00029987,7]
[393839069,1763029847878,-332.0,0.00029987,7]
[393839070,1763029847888,-151.0,0.00029987,7]
[393839071,1763029847899,-151.0,0.00029987,7]
[393839072,1763029847909,-332.0,0.00029987,7]
[393839073,1763029847919,-151.0,0.00029987,7]
[393839074,1763029847929,-151.0,0.00029987,7]
[393839075,1763029847939,-332.0,0.00029987,7]
[393839076,1763029847949,-151.0,0.00029987,7]
[393839077,1763029847958,-151.0,0.00029987,7]
[393839078,1763029847967,-332.0,0.00029987,7]
[393839079,1763029847977,-151.0,0.00029987,7]
[393839080,1763029847987,-151.0,0.00029987,7]
[393839081,1763029847997,-332.0,0.00029987,7]
[393839082,1763029848007,-151.0,0.00029987,7]
[393839083,1763029848017,-151.0,0.00029987,7]
[393839084,1763029848026,-332.0,0.00029987,7]
[393839085,1763029848036,-332.0,0.00029987,7]
[393839086,1763029848046,-332.0,0.00029987,7]
[393839087,1763029848055,-332.0,0.00029987,7]
[393839088,1763029848067,-332.0,0.00029987,7]
[393839089,1763029848076,-151.0,0.00029987,7]
[393839090,1763029848086,-151.0,0.00029987,7]
[393839091,1763029848095,-332.0,0.00029987,7]
[393839092,1763029848105,-151.0,0.00029987,7]
[393839093,1763029848115,-151.0,0.00029987,7]
[393839094,1763029848124,-332.0,0.00029987,7]
[393839095,1763029848134,-151.0,0.00029987,7]
[393839096,1763029848143,-151.0,0.00029987,7]
[393839097,1763029848153,-332.0,0.00029987,7]
[393839098,1763029848162,-151.0,0.00029987,7]
[393839099,1763029848171,-151.0,0.00029987,7]
[393839100,1763029848180,-332.0,0.00029987,7]
[393839101,1763029848189,-151.0,0.00029987,7]
[393839102,1763029848203,-151.0,0.00029987,7]
[393839103,1763029848212,-332.0,0.00029987,7]
[393839104,1763029848222,-151.0,0.00029987,7]
[393839105,1763029848231,-151.0,0.00029987,7]
[393839106,1763029848241,-332.0,0.00029987,7]
[393839107,1763029848250,-151.0,0.00029987,7]
[393839108,1763029848259,-151.0,0.00029987,7]
[393839109,1763029848268,-332.0,0.00029987,7]
[393839110,1763029848277,-151.0,0.00029987,7]
[393839111,1763029848286,-151.0,0.00029987,7]
[393839112,1763029848296,-151.0,0.00029987,7]
[393839113,1763029848307,-332.0,0.00029987,7]
[393839114,1763029848317,-151.0,0.00029987,7]
[393839115,1763029848327,-151.0,0.00029987,7]
[393839116,1763029848336,-332.0,0.00029987,7]
[393839117,1763029848346,-151.0,0.00029987,7]
[393839118,1763029848355,-215.18343295,0.00029987,7]
[393839119,1763029848364,-332.0,0.00029987,7]
[393839120,1763029848373,-151.0,0.00029987,7]
[393839121,1763029848382,-332.0,0.00029987,7]
[393839122,1763029848391,-256.19303084,0.00029987,7]
[393839123,1763029848400,-332.0,0.00029987,7]
[393839124,1763029848410,-332.0,0.00029987,7]
[393839125,1763029848420,-332.0,0.00029987,7]
[393839126,1763029848430,-332.0,0.00029987,7]
[393839127,1763029848439,-166.0,0.00029987,7]
[393839128,1763029848449,-332.0,0.00029987,7]
[393839129,1763029848459,-166.0,0.00029987,7]
[393839130,1763029848469,-332.0,0.00029987,7]
[393839131,1763029848479,-166.0,0.00029987,7]
[393839132,1763029848488,-332.0,0.00029987,7]
[393839133,1763029848498,-332.0,0.00029987,7]
[393839134,1763029848507,-332.0,0.00029987,7]
[393839135,1763029848516,-332.0,0.00029987,7]
[393839136,1763029848525,-332.0,0.00029987,7]
[393839137,1763029848534,-332.0,0.00029987,7]
[393839138,1763029848545,-332.0,0.00029987,7]
[393839139,1763029848554,-332.0,0.00029987,7]
[393839140,1763029848564,-332.0,0.00029987,7]
[393839141,1763029848573,-332.0,0.00029987,7]
[393839142,1763029848582,-332.0,0.00029987,7]
[393839143,1763029848591,-332.0,0.00029987,7]
[393839144,1763029848600,-332.0,0.00029987,7]
[393839145,1763029848609,-332.0,0.00029987,7]
[393839146,1763029848618,-332.0,0.00029987,7]
[393839147,1763029848627,-332.0,0.00029987,7]
[393839148,1763029848637,-332.0,0.00029987,7]
[393839149,1763029848648,-332.0,0.00029987,7]
[393839150,1763029848657,-332.0,0.00029987,7]
[393839151,1763029848667,-332.0,0.00029987,7]
[393839152,1763029848677,-332.0,0.00029987,7]
[393839153,1763029848686,-332.0,0.00029987,7]
[393839154,1763029848695,-332.0,0.00029987,7]
[393839155,1763029848704,-332.0,0.00029987,7]
[393839156,1763029848714,-332.0,0.00029987,7]
[393839157,1763029848723,-332.0,0.00029987,7]
[393839158,1763029848733,-257.67630315,0.00029987,7]
[393839159,1763029848743,-332.0,0.00029987,7]
[393839160,1763029848752,-332.0,0.00029987,7]
[393839161,1763029848760,-332.0,0.00029987,7]
[393839162,1763029848770,-349.43085782,0.00029987,7]
[393839163,1763029848779,-173.98146929,0.00029987,7]
[393839164,1763029848789,-103208.839299,0.0002999,2]
[393839165,1763029848799,-316407.36631102,0.0003,30]
[393839166,1763029848808,-973.07735864,0.0003,10]
[393839167,1763029848817,-304.56667991,0.0003,30]
[393839168,1763029848826,-530.07,0.0003,2]
[393839169,1763029848835,-3113.0,0.00030005,7]
[393839170,1763029848847,-169.0,0.00030013,2]
[393839171,1763029848857,-1027.10680637,0.00030137,14]
[393839172,1763029848867,-162.85,0.000302,7]
[393839173,1763029848876,-169.0,0.00030227,2]
[393839174,1763029848887,-169.0,0.00030231,2]
[393839175,1763029848896,-169.0,0.0003025,2]
[393839176,1763029848906,-3113.0,0.000304,2]
[393839177,1763029848916,-169.0,0.00030417,2]
[393839178,1763029848925,-505.73670855,0.00030521,5]
[393839179,1763029848936,-169.0,0.00030528,7]
[393839180,1763029848946,-169.0,0.00030572,7]
[393839181,1763029848955,-169.0,0.00030576,2]
[393839182,1763029848965,-156.038778,0.00030684,20]
[393839183,1763029848974,-156.038778,0.00030872,31]
[393839184,1763029848983,-400.28388004,0.000309,30]
[393839185,1763029848993,-5354.6,0.000311,7]
[393839186,1763029849003,-156.038778,0.00031884,5]
[393839187,1763029849013,-156.038778,0.00031893,2]
[393839188,1763029849022,-312.0,0.00031925,2]
[393839189,1763029849033,-156.038778,0.00031946,20]
[393839190,1763029849043,-530.07,0.000321,2]
[393839191,1763029849052,-156.038778,0.00032246,5]
[393839192,1763029849062,-300.0,0.0003249,30]
[393839193,1763029849071,-156.038778,0.00032524,2]
[393839194,1763029849080,-156.038778,0.00032562,30]
[393839195,1763029849089,-162.85,0.000326,7]
[393839196,1763029849099,-800.0,0.000326,2]
[393839197,1763029849108,-682.84448512,0.00032626,2]
[393839198,1763029849117,-755.16729179,0.0003269,2]
[393839199,1763029849126,-503.7323031,0.00032876,3]
[393839200,1763029849136,-300.0,0.00032877,120]
[393839201,1763029849145,-300.0,0.00032877,120]
[393839202,1763029849154,-300.0,0.00032877,120]
[393839203,1763029849164,-233.11006105,0.00032877,120]
[393839204,1763029849173,-214.06813016,0.000329,120]
[393839205,1763029849182,-237.07026689,0.000329,120]
[393839206,1763029849192,-1916.33340737,0.00033055,2]
[393839207,1763029849202,-199.0,0.0003315,14]
[393839208,1763029849211,-162.202445,0.00033165,2]
[393839209,1763029849221,-157.7400875,0.000332,117]
[393839210,1763029849230,-150.0,0.00033296,2]
[393839211,1763029849240,-156.038778,0.00033416,30]
[393839212,1763029849250,-14744.1198998,0.0003349,2]
[393839213,1763029849259,-32785.36665944,0.000335,2]
[393839214,1763029849268,-530.07,0.000337,14]
[393839215,1763029849277,-3481.0,0.0003382,2]
[393839216,1763029849287,-237.07026689,0.000339,120]
[393839217,1763029849296,-5354.6,0.000339,14]
[393839218,1763029849305,-339.0,0.00033925,120]
[393839219,1763029849315,-539.0,0.00034,2]
[393839220,1763029849324,-3481.0,0.00034151,7]
[393839221,1763029849333,-4423.0,0.00034583,2]
[393839222,1763029849342,-300.0,0.00034629,30]
[393839223,1763029849351,-300.0,0.00034629,30]